fUSD/lending_fUSD_20260408
["ID","MTS","AMOUNT","RATE_DAILY","PERIOD"]
[420070558,1775649041881,-300.0,0.00017999,2]
[420070559,1775649041890,-300.0,0.00017999,2]
[420070560,1775649041900,-300.0,0.00017999,2]
[420070561,1775649041910,-300.0,0.00017999,2]
[420070562,1775649041920,-300.0,0.00017999,2]
[420070563,1775649041929,-300.0,0.00017999,2]
[420070564,1775649041939,-300.0,0.00017999,2]
[420070565,1775649041949,-300.0,0.00017999,2]
[420070566,1775649041959,-291.62997878,0.00017999,2]
[420070567,1775649041969,-110307.63501878,0.00018,2]
[420070568,1775649041980,-1201.17333359,0.00018,2]
[420070569,1775649041990,-309.73899348,0.00018,2]
[420070571,1775649042000,-579.26661007,0.00018,2]
[420070572,1775649042011,-2443.24,0.00018024,2]
[420070573,1775649042020,-1394.8,0.00018082,2]
[420070574,1775649042030,-150.0,0.00018082,2]
[420070575,1775649042039,-750.0,0.00018082,2]
[420070576,1775649042049,-1792.78978669,0.000181,2]
[420070577,1775649042058,-1849.56796848,0.00018164,2]
[420070578,1775649042068,-2500.0,0.00018164,2]
[420070579,1775649042078,-2500.0,0.00018164,2]
[420070580,1775649042087,-608.52370018,0.00018164,2]
[420070581,1775649042097,-2500.0,0.00018164,2]
[420070582,1775649042106,-2534.58561509,0.00018164,2]
[420070583,1775649042116,-2000.0,0.00018298,2]
[420070584,1775649042126,-1116.0,0.00018317,2]
[420070585,1775649042136,-89197.3,0.00018356,2]
[420070586,1775649042146,-850.0,0.00018356,2]
[420070587,1775649042155,-1347.0,0.00018387,2]
[420070588,1775649042165,-3542.414,0.00018387,2]
[420070589,1775649042175,-631.205,0.00018387,2]
[420070590,1775649042185,-1264.0,0.00018387,2]
[420070591,1775649042195,-3772.0,0.00018387,2]
[420070592,1775649042207,-420.887,0.00018387,2]
[420070593,1775649042216,-1288.49995935,0.00018427,2]
[420070594,1775649042226,-151.0,0.00018505,2]
[420070595,1775649042236,-2812.0,0.00018508,2]
[420070596,1775649042245,-578.20924308,0.00018542,2]
[420070597,1775649042255,-1235.18214925,0.00018542,2]
[420070598,1775649042265,-623.58710448,0.00018542,2]
[420070599,1775649042276,-200.0,0.00018542,2]
[420070600,1775649042286,-500.0,0.00018542,2]
[420070601,1775649042296,-3000.0,0.00018542,2]
[420070602,1775649042307,-3000.0,0.00018542,2]
[420070603,1775649042317,-3000.0,0.00018542,2]
[420070604,1775649042327,-3000.0,0.00018542,2]
[420070605,1775649042336,-2620.91593184,0.00018542,2]
[420070606,1775649042346,-151.0,0.00018542,2]
[420070607,1775649042356,-174.61919141,0.00018542,2]
[420070608,1775649042365,-1500.0,0.00018542,2]
[420070609,1775649042375,-1532.75885711,0.00018542,2]
[420070610,1775649042384,-170.0,0.00018542,2]
[420070611,1775649042394,-170.0,0.00018542,2]
[420070612,1775649042403,-170.0,0.00018542,2]
[420070613,1775649042413,-170.0,0.00018542,2]
[420070614,1775649042422,-170.0,0.00018542,2]
[420070615,1775649042431,-170.0,0.00018542,2]
[420070616,1775649042441,-170.0,0.00018542,2]
[420070617,1775649042450,-170.0,0.00018542,2]
[420070618,1775649042460,-170.0,0.00018542,2]
[420070619,1775649042469,-170.0,0.00018542,2]
[420070620,1775649042479,-170.0,0.00018542,2]
[420070621,1775649042488,-170.0,0.00018542,2]
[420070622,1775649042498,-170.0,0.00018542,2]
[420070623,1775649042507,-170.0,0.00018542,2]
[420070624,1775649042517,-170.0,0.00018542,2]
[420070625,1775649042526,-500.0,0.00018597,2]
[420070626,1775649042536,-151.0,0.00018597,2]
[420070627,1775649042546,-150.0,0.0001863,2]
[420070628,1775649042556,-950.0,0.0001863,2]
[420070629,1775649042566,-500.0,0.00018652,2]
[420070630,1775649042576,-151.0,0.00018652,2]
[420070631,1775649042586,-481.98,0.0001866,2]
[420070632,1775649042595,-299.38773847,0.0001866,2]
[420070633,1775649042606,-17989.4427541,0.00018681,2]
[420070634,1775649042616,-300.0,0.0001869,60]
[420070635,1775649042625,-500.0,0.00018707,2]
[420070636,1775649042635,-151.0,0.00018707,2]
[420070637,1775649042645,-3000.0,0.00018712,2]
[420070638,1775649042654,-172.0803012,0.00018712,2]
[420070639,1775649042664,-3000.0,0.00018712,2]
[420070640,1775649042674,-500.0,0.00018762,2]
[420070641,1775649042683,-151.0,0.00018762,2]
[420070642,1775649042693,-500.0,0.00018817,2]
[420070643,1775649042703,-151.0,0.00018817,2]
[420070644,1775649042714,-500.0,0.00018872,2]
[420070645,1775649042724,-151.0,0.00018872,2]
[420070646,1775649042734,-1348.82,0.00018904,2]
[420070647,1775649042744,-1062.76127343,0.00018904,2]
[420070648,1775649042755,-1466.0,0.00018919,2]
[420070649,1775649042764,-500.0,0.00018927,2]
[420070650,1775649042774,-151.0,0.00018927,2]
[420070651,1775649042784,-271.0,0.00018976,2]
[420070652,1775649042795,-500.0,0.00018982,2]
[420070653,1775649042804,-151.0,0.00018982,2]
[420070654,1775649042814,-300.0,0.00018999,2]
[420070655,1775649042823,-300.0,0.00018999,2]
[420070656,1775649042833,-300.0,0.00018999,2]
[420070657,1775649042843,-300.0,0.00018999,2]
[420070658,1775649042852,-300.0,0.00018999,2]
[420070659,1775649042863,-300.0,0.00018999,2]
[420070660,1775649042872,-300.0,0.00018999,2]
[420070661,1775649042883,-300.0,0.00018999,2]
[420070662,1775649042892,-300.0,0.00018999,2]
[420070663,1775649042903,-300.0,0.00018999,2]
[420070664,1775649042913,-300.0,0.00018999,2]
[420070665,1775649042922,-300.0,0.00018999,2]
[420070666,1775649042932,-300.0,0.00018999,2]
[420070667,1775649042942,-5209.32733989,0.00019,2]
[420070668,1775649042951,-1790.94859746,0.00019,2]
[420070669,1775649042960,-3111.32586599,0.00019,2]
[420070670,1775649042970,-115474.92486163,0.00019,2]
[420070671,1775649042980,-400.0,0.00019,2]
[420070672,1775649042990,-167.03,0.00019,2]
[420070673,1775649042999,-500.0,0.00019037,2]
[420070674,1775649043009,-151.0,0.00019037,2]
[420070675,1775649043019,-5934.0,0.00019052,2]
[420070676,1775649043030,-200.0,0.0001909,2]
[420070677,1775649043040,-1280.88388878,0.0001909,2]
[420070678,1775649043051,-181.08010149,0.0001909,2]
[420070679,1775649043062,-500.0,0.00019092,2]
[420070680,1775649043073,-151.0,0.00019092,2]
[420070681,1775649043083,-500.0,0.00019147,2]
[420070682,1775649043093,-151.0,0.00019147,2]
[420070683,1775649043103,-300.0,0.00019177,2]
[420070684,1775649043114,-300.0,0.00019177,2]
[420070685,1775649043124,-300.0,0.00019177,2]
[420070686,1775649043135,-300.0,0.00019177,2]
[420070687,1775649043146,-300.0,0.00019177,2]
[420070688,1775649043156,-300.0,0.00019177,2]
[420070689,1775649043166,-300.0,0.00019177,2]
[420070690,1775649043176,-300.0,0.00019177,2]
[420070691,1775649043186,-300.0,0.00019177,2]
[420070692,1775649043196,-300.0,0.00019177,2]
[420070693,1775649043207,-300.0,0.00019177,2]
[420070694,1775649043216,-300.0,0.00019177,2]
[420070695,1775649043227,-181.45,0.00019178,2]
[420070696,1775649043237,-150.0,0.00019178,2]
[420070697,1775649043247,-150.0,0.00019178,2]
[420070698,1775649043258,-150.0,0.00019178,2]
[420070702,1775649043267,-174.84639073,0.00019178,2]
[420070705,1775649043277,-3000.0,0.00019178,2]
[420070708,1775649043286,-3000.0,0.00019178,7]
[420070710,1775649043296,-256.0,0.00019178,2]
[420070711,1775649043306,-1750.0,0.00019178,2]
[420070714,1775649043315,-1750.0,0.00019178,2]
[420070715,1775649043326,-1750.0,0.00019178,2]
[420070716,1775649043336,-1750.0,0.00019178,2]
[420070717,1775649043346,-1750.0,0.00019178,2]
[420070718,1775649043357,-1750.0,0.00019178,2]
[420070719,1775649043367,-1750.0,0.00019178,2]
[420070720,1775649043379,-1750.0,0.00019178,2]
[420070721,1775649043390,-1750.0,0.00019178,2]
[420070722,1775649043401,-1713.0,0.00019178,2]
[420070723,1775649043411,-10000.0,0.00019178,7]
[420070724,1775649043421,-10000.0,0.00019178,7]
[420070725,1775649043432,-10000.0,0.00019178,7]
[420070726,1775649043442,-10000.0,0.00019178,7]
[420070727,1775649043453,-10000.0,0.00019178,7]
[420070728,1775649043464,-20316.79,0.00019178,2]
[420070729,1775649043474,-150.0,0.00019178,2]
[420070730,1775649043484,-173.42231467,0.00019178,2]
[420070731,1775649043495,-150.0,0.00019178,2]
[420070732,1775649043505,-7092.7,0.0001919,2]
[420070733,1775649043515,-9201.3840855,0.00019198,2]
[420070734,1775649043525,-404.7485,0.000192,2]
[420070735,1775649043536,-500.0,0.00019202,2]
[420070736,1775649043546,-151.0,0.00019202,2]
[420070737,1775649043847,-500.0,0.00019257,2]
[420070738,1775649043892,-296.68813754,0.00019257,2]
[420070739,1775649043903,-3500.0,0.0001926,2]
[420070740,1775649043913,-3500.0,0.0001926,2]
[420070741,1775649043924,-4013.9872427,0.00019279,2]
[420070742,1775649043934,-1116.0,0.00019281,2]
[420070743,1775649043944,-500.0,0.00019312,2]
[420070744,1775649043954,-162.0,0.000196,2]
[420070745,1775649043965,-200.0,0.00019638,2]
[420070746,1775649043976,-1328.27659266,0.00019638,2]
[420070747,1775649043987,-187.78006525,0.00019638,2]
[420070748,1775649043997,-233.97,0.00019658,2]
[420070749,1775649044006,-250.0,0.00019726,2]
[420070750,1775649044016,-250.0,0.00019726,2]
[420070751,1775649044027,-505.70956127,0.00019808,2]
[420070752,1775649044037,-842.51338463,0.00019808,2]
[420070753,1775649044046,-1000.0,0.00019848,7]
[420070754,1775649044056,-966.0,0.00019855,2]
[420070755,1775649044066,-229.0,0.00019855,2]
[420070756,1775649044076,-1715.0,0.00019855,2]
[420070757,1775649044086,-7641.0,0.00019855,2]
[420070758,1775649044096,-7017.0,0.00019855,2]
[420070759,1775649044106,-1904.0,0.00019855,2]
[420070760,1775649044115,-1372.0,0.00019855,2]
[420070761,1775649044125,-2739.0,0.00019855,2]
[420070762,1775649044135,-151.0,0.00019897,2]
[420070763,1775649044144,-70257.82608458,0.000199,2]
[420070764,1775649044154,-1466.0,0.00019919,2]
[420070765,1775649044163,-6703.71173397,0.00019924,2]
[420070766,1775649044173,-15576.59833071,0.0001995,15]
[420070767,1775649044183,-300.0,0.00019979,2]
[420070768,1775649044194,-300.0,0.00019979,2]
[420070769,1775649044203,-300.0,0.00019979,2]
[420070770,1775649044213,-300.0,0.00019979,2]
[420070771,1775649044223,-300.0,0.00019979,2]
[420070772,1775649044232,-300.0,0.00019979,2]
[420070773,1775649044242,-300.0,0.00019979,2]
[420070774,1775649044253,-300.0,0.00019979,2]
[420070775,1775649044263,-300.0,0.00019979,2]
[420070776,1775649044272,-300.0,0.00019979,2]
[420070777,1775649044282,-300.0,0.00019979,2]
[420070778,1775649044292,-120272.1348373,0.0001998,2]
[420070779,1775649044302,-300.0,0.00019999,2]
[420070780,1775649044312,-300.0,0.00019999,2]
[420070781,1775649044322,-300.0,0.00019999,2]
[420070782,1775649044332,-300.0,0.00019999,2]
[420070783,1775649044341,-300.0,0.00019999,2]
[420070784,1775649044351,-300.0,0.00019999,2]
[420070785,1775649044361,-300.0,0.00019999,2]
[420070786,1775649044371,-300.0,0.00019999,2]
[420070787,1775649044381,-300.0,0.00019999,2]
[420070788,1775649044391,-300.0,0.00019999,2]
[420070789,1775649044401,-7047.11429851,0.0002,2]
[420070790,1775649044411,-1545.58634089,0.0002,2]
[420070791,1775649044421,-25800.60043484,0.0002,2]
[420070793,1775649044430,-2464.68,0.0002,2]
[420070794,1775649044440,-3950.0,0.0002,2]
[420070795,1775649044450,-26648.66577385,0.0002,2]
[420070796,1775649044460,-1304.81800329,0.0002,2]
[420070797,1775649044470,-133136.51119321,0.0002,2]
[420070798,1775649044479,-200.0,0.0002,2]
[420070799,1775649044489,-465.93814266,0.0002,120]
[420070800,1775649044499,-1053.31373835,0.0002,2]
[420070801,1775649044509,-2886.43025079,0.0002,2]
[420070802,1775649044518,-13028.12478033,0.0002,2]
[420070803,1775649044528,-152.0,0.0002,2]
[420070804,1775649044539,-25441.88471301,0.0002,20]
[420070805,1775649044549,-2000.0,0.0002,2]
[420070806,1775649044559,-5544.72711782,0.0002,2]
[420070807,1775649044568,-650.0,0.0002,30]
[420070808,1775649044578,-650.0,0.0002,30]
[420070809,1775649044588,-650.0,0.0002,30]
[420070810,1775649044598,-650.0,0.0002,30]
[420070811,1775649044608,-650.0,0.0002,30]
[420070812,1775649044618,-610.0,0.0002,30]
[420070813,1775649044628,-160.0,0.0002,7]
[420070814,1775649044639,-160.0,0.0002,7]
[420070815,1775649044648,-150.0,0.0002,2]
[420070816,1775649044658,-150.0,0.0002,2]
[420070817,1775649044667,-151.4304605,0.0002,2]
[420070818,1775649044678,-200.0,0.0002,10]
[420070819,1775649044688,-1282.0,0.0002,2]
[420070820,1775649044698,-825.0,0.0002,30]
[420070821,1775649044707,-2000.0,0.0002001,2]
[420070822,1775649044718,-2000.0,0.0002002,2]
[420070823,1775649044727,-2790.840175,0.0002003,2]
[420070824,1775649044737,-1302.83,0.00020054,2]
[420070825,1775649044747,-2000.0,0.000201,2]
[420070826,1775649044757,-300.0,0.000201,10]
[420070827,1775649044768,-688.25999339,0.00020186,2]
[420070828,1775649044778,-200.0,0.00020186,2]
[420070829,1775649044788,-194.72792766,0.00020186,2]
[420070830,1775649044797,-2443.24,0.00020187,2]
[420070831,1775649044807,-500.0,0.00020192,2]
[420070832,1775649044816,-8999.2826198,0.00020268,2]
[420070833,1775649044826,-350.0,0.00020274,2]
[420070834,1775649044836,-350.0,0.00020274,2]
[420070835,1775649044846,-1116.0,0.00020296,2]
[420070836,1775649044855,-21711.93,0.00020548,2]
[420070837,1775649044864,-160.0,0.000206,7]
[420070838,1775649044875,-160.0,0.000206,7]
[420070839,1775649044884,-466.4124,0.000206,2]
[420070840,1775649044894,-150.0,0.00020616,2]
[420070841,1775649044905,-150.0,0.00020616,2]
[420070842,1775649044914,-150.0,0.00020616,2]
[420070843,1775649044923,-150.0,0.00020616,2]
[420070844,1775649044934,-22847.98735564,0.000207,2]
[420070845,1775649044944,-200.0,0.00020734,2]
[420070846,1775649044954,-201.93286099,0.00020734,2]
[420070847,1775649044964,-1288.49995935,0.00020746,2]
[420070848,1775649044973,-662.26960582,0.00020793,2]
[420070849,1775649044983,-450.0,0.00020822,2]
[420070850,1775649044994,-450.0,0.00020822,2]
[420070851,1775649045005,-150.0,0.00020846,2]
[420070852,1775649045015,-150.0,0.00020846,2]
[420070853,1775649045026,-150.0,0.00020846,2]
[420070854,1775649045036,-150.0,0.00020846,2]
[420070855,1775649045045,-966.0,0.00020855,2]
[420070856,1775649045055,-229.0,0.00020855,2]
[420070857,1775649045064,-1715.0,0.00020855,2]
[420070858,1775649045074,-7641.0,0.00020855,2]
[420070859,1775649045083,-7017.0,0.00020855,2]
[420070860,1775649045092,-1904.0,0.00020855,2]
[420070861,1775649045101,-1372.0,0.00020855,2]
[420070862,1775649045111,-2739.0,0.00020855,2]
[420070863,1775649045122,-1466.0,0.00020919,2]
[420070864,1775649045131,-152.80820585,0.00021,2]
[420070865,1775649045141,-20000.0,0.00021,2]
[420070866,1775649045151,-1202.80204131,0.00021,2]
[420070867,1775649045161,-198.51519673,0.00021,2]
[420070868,1775649045170,-450.0,0.00021,2]
[420070869,1775649045180,-167.03,0.00021,2]
[420070870,1775649045190,-155.32006585,0.00021022,2]
[420070871,1775649045200,-2812.0,0.00021169,2]
[420070872,1775649045210,-599.60298507,0.00021281,2]
[420070873,1775649045219,-646.65982734,0.00021281,2]
[420070874,1775649045229,-201.2726407,0.00021282,2]
[420070875,1775649045239,-336.94558922,0.00021282,2]
[420070876,1775649045249,-1116.0,0.00021364,2]
[420070877,1775649045258,-1256.85,0.00021369,2]
[420070878,1775649045267,-6434.78,0.0002137,2]
[420070879,1775649045277,-550.0,0.0002137,2]
[420070880,1775649045286,-550.0,0.0002137,2]
[420070881,1775649045296,-1347.0,0.00021387,2]
[420070882,1775649045306,-3524.0,0.00021387,2]
[420070883,1775649045316,-622.0,0.00021387,2]
[420070884,1775649045325,-1264.0,0.00021387,2]
[420070885,1775649045335,-3772.0,0.00021387,2]
[420070886,1775649045346,-415.0,0.00021387,2]
[420070887,1775649045355,-2812.0,0.00021489,2]
[420070888,1775649045365,-2812.0,0.00021489,2]
[420070889,1775649045374,-58031.49924647,0.000215,2]
[420070890,1775649045384,-223.97915163,0.000215,2]
[420070891,1775649045394,-500.0,0.00021793,2]
[420070892,1775649045404,-966.0,0.00021855,2]
[420070893,1775649045414,-229.0,0.00021855,2]
[420070894,1775649045424,-1715.0,0.00021855,2]
[420070895,1775649045433,-7641.0,0.00021855,2]
[420070896,1775649045442,-7017.0,0.00021855,2]
[420070897,1775649045453,-1904.0,0.00021855,2]
[420070898,1775649045462,-1372.0,0.00021855,2]
[420070899,1775649045472,-2739.0,0.00021855,2]
[420070900,1775649045481,-477.15533545,0.00021871,2]
[420070901,1775649045491,-205.77,0.00021879,2]
[420070902,1775649045505,-298.9,0.0002189,2]
[420070903,1775649045515,-265.3,0.0002189,2]
[420070904,1775649045525,-436.3,0.0002189,2]
[420070905,1775649045534,-435.4,0.0002189,2]
[420070906,1775649045544,-3060.89,0.00021918,2]
[420070907,1775649045554,-1000.0,0.00021918,2]
[420070908,1775649045563,-1000.0,0.00021918,2]
[420070909,1775649045573,-1000.0,0.00021918,2]
[420070910,1775649045583,-1000.0,0.00021918,2]
[420070911,1775649045592,-1000.0,0.00021918,2]
[420070912,1775649045602,-313.0,0.00021918,2]
[420070913,1775649045612,-1000.0,0.00021918,2]
[420070914,1775649045622,-5000.0,0.00021918,2]
[420070915,1775649045631,-151.0,0.00021918,2]
[420070916,1775649045640,-151.0,0.00021918,2]
[420070917,1775649045650,-151.0,0.00021918,2]
[420070918,1775649045659,-151.0,0.00021918,2]
[420070919,1775649045669,-151.0,0.00021918,2]
[420070920,1775649045679,-151.0,0.00021918,2]
[420070921,1775649045689,-151.0,0.00021918,2]
[420070922,1775649045699,-151.0,0.00021918,2]
[420070923,1775649045709,-151.0,0.00021918,2]
[420070924,1775649045719,-151.0,0.00021918,2]
[420070925,1775649045729,-151.0,0.00021918,2]
[420070926,1775649045739,-151.0,0.00021918,2]
[420070927,1775649045749,-151.0,0.00021918,2]
[420070928,1775649045759,-151.0,0.00021918,2]
[420070929,1775649045768,-151.0,0.00021918,2]
[420070930,1775649045778,-151.0,0.00021918,2]
[420070931,1775649045788,-151.0,0.00021918,2]
[420070932,1775649045798,-151.0,0.00021918,2]
[420070933,1775649045808,-151.0,0.00021918,2]
[420070934,1775649045818,-151.0,0.00021918,2]
[420070935,1775649045828,-151.0,0.00021918,2]
[420070936,1775649045838,-151.0,0.00021918,2]
[420070937,1775649045848,-151.0,0.00021918,2]
[420070938,1775649045858,-151.0,0.00021918,2]
[420070939,1775649045868,-151.0,0.00021918,2]
[420070940,1775649045878,-151.0,0.00021918,2]
[420070941,1775649045887,-151.0,0.00021918,2]
[420070942,1775649045896,-151.0,0.00021918,2]
[420070943,1775649045906,-151.0,0.00021918,2]
[420070944,1775649045916,-151.0,0.00021918,2]
[420070945,1775649045926,-151.0,0.00021918,2]
[420070946,1775649045936,-151.0,0.00021918,2]
[420070947,1775649045945,-151.0,0.00021918,2]
[420070948,1775649045955,-151.0,0.00021918,2]
[420070949,1775649045965,-151.0,0.00021918,2]
[420070950,1775649045974,-151.0,0.00021918,2]
[420070951,1775649045984,-151.0,0.00021918,2]
[420070952,1775649045995,-151.0,0.00021918,2]
[420070953,1775649046005,-151.0,0.00021918,2]
[420070954,1775649046014,-151.0,0.00021918,2]
[420070955,1775649046025,-151.0,0.00021918,2]
[420070956,1775649046034,-151.0,0.00021918,2]
[420070957,1775649046044,-151.0,0.00021918,2]
[420070958,1775649046054,-151.0,0.00021918,2]
[420070959,1775649046063,-151.0,0.00021918,2]
[420070960,1775649046073,-151.0,0.00021918,2]
[420070961,1775649046083,-151.0,0.00021918,2]
[420070962,1775649046093,-151.0,0.00021918,2]
[420070963,1775649046102,-151.0,0.00021918,2]
[420070964,1775649046112,-151.0,0.00021918,2]
[420070965,1775649046122,-151.0,0.00021918,2]
[420070968,1775649046133,-151.0,0.00021918,2]
[420070970,1775649046142,-151.0,0.00021918,2]
[420070972,1775649046152,-151.0,0.00021918,2]
[420070973,1775649046162,-151.0,0.00021918,2]
[420070974,1775649046172,-151.0,0.00021918,2]
[420070975,1775649046182,-151.0,0.00021918,2]
[420070976,1775649046192,-151.0,0.00021918,2]
[420070977,1775649046201,-151.0,0.00021918,2]
[420070978,1775649046211,-151.0,0.00021918,2]
[420070979,1775649046221,-151.0,0.00021918,2]
[420070980,1775649046230,-151.0,0.00021918,2]
[420070981,1775649046240,-151.0,0.00021918,2]
[420070982,1775649046381,-151.0,0.00021918,2]
[420070983,1775649046391,-151.0,0.00021918,2]
[420070984,1775649046401,-151.0,0.00021918,2]
[420070985,1775649046409,-151.0,0.00021918,2]
[420070986,1775649046418,-151.0,0.00021918,2]
[420070987,1775649046427,-151.0,0.00021918,2]
[420070988,1775649046436,-151.0,0.00021918,2]
[420070989,1775649046446,-151.0,0.00021918,2]
[420070990,1775649046455,-151.0,0.00021918,2]
[420070991,1775649046464,-151.0,0.00021918,2]
[420070992,1775649046473,-151.0,0.00021918,2]
[420070993,1775649046482,-151.0,0.00021918,2]
[420070994,1775649046491,-151.0,0.00021918,2]
[420070995,1775649046501,-151.0,0.00021918,2]
[420070996,1775649046511,-151.0,0.00021918,2]
[420070997,1775649046520,-151.0,0.00021918,2]
[420070998,1775649046530,-151.0,0.00021918,2]
[420070999,1775649046539,-151.0,0.00021918,2]
[420071000,1775649046549,-151.0,0.00021918,2]
[420071001,1775649046559,-151.0,0.00021918,2]
[420071002,1775649046568,-151.0,0.00021918,2]
[420071003,1775649046577,-151.0,0.00021918,2]
[420071004,1775649046587,-151.0,0.00021918,2]
[420071005,1775649046596,-151.0,0.00021918,2]
[420071006,1775649046606,-151.0,0.00021918,2]
[420071007,1775649046615,-151.0,0.00021918,2]
[420071008,1775649046625,-151.0,0.00021918,2]
[420071009,1775649046634,-151.0,0.00021918,2]
[420071010,1775649046644,-151.0,0.00021918,2]
[420071011,1775649046653,-151.0,0.00021918,2]
[420071012,1775649046662,-151.0,0.00021918,2]
[420071013,1775649046671,-151.0,0.00021918,2]
[420071014,1775649046681,-151.0,0.00021918,2]
[420071015,1775649046691,-151.0,0.00021918,2]
[420071016,1775649046700,-151.0,0.00021918,2]
[420071017,1775649046711,-151.0,0.00021918,2]
[420071018,1775649046720,-151.0,0.00021918,2]
[420071019,1775649046730,-650.0,0.00021918,2]
[420071020,1775649046739,-650.0,0.00021918,2]
[420071021,1775649046749,-150.0,0.00021918,2]
[420071022,1775649046759,-150.0,0.00021918,2]
[420071023,1775649046769,-150.0,0.00021918,2]
[420071024,1775649046779,-150.0,0.00021918,2]
[420071025,1775649046789,-150.0,0.00021918,2]
[420071026,1775649046800,-150.0,0.00021918,2]
[420071027,1775649046811,-150.0,0.00021918,2]
[420071028,1775649046820,-150.0,0.00021918,2]
[420071029,1775649046831,-150.0,0.00021918,2]
[420071030,1775649046841,-150.0,0.00021918,2]
[420071031,1775649046851,-150.0,0.00021918,2]
[420071032,1775649046861,-150.0,0.00021918,2]
[420071033,1775649046872,-150.0,0.00021918,2]
[420071034,1775649046882,-150.0,0.00021918,2]
[420071035,1775649046892,-150.0,0.00021918,2]
[420071036,1775649046901,-150.0,0.00021918,2]
[420071037,1775649046911,-150.0,0.00021918,2]
[420071038,1775649046921,-150.0,0.00021918,2]
[420071039,1775649046930,-150.0,0.00021918,2]
[420071040,1775649046939,-150.0,0.00021918,2]
[420071041,1775649046949,-296.36296758,0.00021918,2]
[420071042,1775649046958,-500.0,0.00021918,2]
[420071043,1775649046968,-500.0,0.00021918,2]
[420071044,1775649046977,-500.0,0.00021918,2]
[420071045,1775649046987,-220.54357103,0.00021918,2]
[420071047,1775649046996,-150.0,0.00021918,2]
[420071049,1775649047006,-1466.0,0.00021919,2]
[420071051,1775649047016,-7092.7,0.00021941,2]
[420071053,1775649047027,-172.533458,0.00021941,2]
[420071055,1775649047036,-172.533458,0.00021941,2]
[420071057,1775649047046,-172.533458,0.00021941,2]
[420071059,1775649047056,-172.533458,0.00021941,2]
[420071060,1775649047066,-2015.78286207,0.00022,2]
[420071061,1775649047075,-164.92,0.00022,2]
[420071062,1775649047084,-160.0,0.00022,2]
[420071063,1775649047094,-1000.0,0.00022,22]
[420071064,1775649047103,-634.1,0.00022,30]
[420071065,1775649047113,-716.0,0.00022,2]
[420071066,1775649047123,-537.4709,0.00022,2]
[420071067,1775649047133,-1573.0,0.00022039,2]
[420071068,1775649047143,-498.70318472,0.000221,2]
[420071069,1775649047153,-242.35849717,0.0002211,2]
[420071070,1775649047163,-2443.24,0.0002235,2]
[420071071,1775649047173,-1000.0,0.000224,2]
[420071072,1775649047182,-825.0,0.00022435,30]
[420071073,1775649047193,-750.0,0.00022466,2]
[420071074,1775649047203,-750.0,0.00022466,2]
[420071075,1775649047212,-1116.0,0.00022488,2]
[420071076,1775649047222,-35815.9601133,0.000225,2]
[420071077,1775649047232,-3636.91006951,0.000226,2]
[420071078,1775649047242,-233.97,0.00022603,2]
[420071079,1775649047251,-527.87828183,0.0002271,2]
[420071080,1775649047261,-18109.83,0.0002274,2]